Cogmind - Beta 16.1 @@@ ROGUE MODE // 2026.04.07 @ 12:50:53 Player: Lyft Result: Destroyed by AO-I12(R) with Subdweller Machine Gun Performance ------------- Evolutions (0) 0 Regions Visited (2) 400 Robots Destroyed (22) 110 Value Destroyed (369) 369 Prototype IDs (0) 0 Alien Tech Used (0) 0 Bonus (0) 0 TOTAL SCORE: 879 Bonus ------- None Cogmind --------- Core Integrity 0/250 Matter 275/300 Energy 100/100 System Corruption 0% Temperature Cool (6) Movement Core (700) Ox13 Location -10/Subcaves Parts ------- > --- POWER (1) -------- (None) > --- PROPULSION (2) --- (None) > --- UTILITY (2) ------ Improved Heat Sink High-capacity Storage Unit > --- WEAPON (2) ------- (None) > --- INVENTORY (20) --- Subdweller Monowheel Subdweller Monowheel Disposable Heat Sink Large Storage Unit Seismic Detector Transport Network Coupler Multitool Peak State ------------ > --- POWER ------------ Ion Engine > --- PROPULSION ------- Light Treads Compact Wheel > --- UTILITY ---------- Improved Heat Sink Large Storage Unit > --- WEAPON ----------- Small Laser Light Assault Rifle > --- INVENTORY -------- Ion Engine Light Treads Compact Wheel Large Storage Unit High-capacity Storage Unit Terrain Scanner Seismic Detector Transport Network Coupler Assault Rifle Mining Laser [Rating: 10] Favorites ----------- Power Ion Engine Engine Ion Engine Propulsion Compact Wheel Treads Light Treads Leg Aluminum Leg Wheel Compact Wheel Utility High-capacity Storage Unit Device Improved Heat Sink Storage High-capacity Storage Unit Weapon Light Assault Rifle Energy Gun Small Laser Energy Cannon Subdweller Beam Cannon Ballistic Gun Light Assault Rifle Special Weapon Mining Laser Build | -11 -10 -10 ------- Run | Yrd Mat Sub Slots Evolved . | . . . Power . | . . . Propulsion . | . . . Utility . | . . . Weapon . | . . . Parts Attached 18 | 3 9 6 Power 2 | . 1 1 Engine 2 | . 1 1 Core . | . . . Reactor . | . . . Propulsion 4 | 2 2 . Treads 2 | 1 1 . Leg . | . . . Wheel 2 | 1 1 . Hover . | . . . Flight . | . . . Utility 7 | 1 5 1 Device 4 | 1 2 1 Storage 3 | . 3 . Processor . | . . . Hackware . | . . . Protection . | . . . Artifact . | . . . Weapon 5 | . 1 4 Energy Gun . | . . . Energy Cannon 1 | . . 1 Ballistic Gun 3 | . 1 2 Ballistic Cannon . | . . . Launcher . | . . . Special Weapon 1 | . . 1 Impact Weapon . | . . . Slashing Weapon . | . . . Piercing Weapon . | . . . Special Melee Weapon . | . . . Unidentified Prototypes . | . . . Parts Lost 11 | . 1 10 Power 2 | . . 2 Propulsion 3 | . 1 2 Utility 1 | . . 1 Weapon 5 | . . 5 Highest Loss Streak 5 | . 1 5 To Critical Strikes . | . . . Average Backups 7 | 4 7 6 Power . | 1 1 . Propulsion 1 | 2 1 . Utility 3 | . 2 3 Weapon 1 | 1 2 1 Tool/Special . | . . . Unused Backups 7 | . 2 5 Power . | . . . Propulsion 2 | . . 2 Utility 4 | . 2 2 Weapon . | . . . Tool/Special 1 | . . 1 Average Slot Usage (%) 94 | . 100 89 Engine 13 | . 14 13 Treads 11 | . 14 8 Wheel 13 | . 14 13 Device 12 | . 13 11 Storage 14 | . 14 14 Energy Gun 6 | . 12 . Energy Cannon 2 | . . 5 Ballistic Gun 14 | . 15 14 Special Weapon 3 | . . 7 Peak Build Rating 10 | 7 10 10 Average Rating 7 | 6 8 8 On Entrance 7 | 6 7 9 Avg Prop Armor Cover (%) 13 | 14 13 12 Naked Turns . | . . . Heaviest Build 55 | 11 49 55 Greatest Support 20 | 20 20 16 Greatest Overweight (x) 16 | . 3 16 Average Overweight (x) 1 | . 1 2 Largest Inventory Capacity 20 | 8 20 20 Average Capacity 17 | 8 15 20 Most Carried 10 | 7 10 8 Average Carried 7 | 4 7 6 Final Capacity 20 | 8 20 20 Final Carried 7 | 5 7 7 Class Distribution -------------------- 80% | Mutant 19% | Scavenger-Mutant Dominant Class ---------------- Mutant | -10/Materials Mutant | -10/Subcaves Resources | -11 -10 -10 ----------- Run | Yrd Mat Sub Matter Collected 501 | 243 89 169 Remotely . | . . . Salvage Created 674 | 154 361 159 Parts 50 | 14 30 6 Haulers Intercepted 1 | . 1 . Recyclers Shooed 1 | 1 . . Parts Field Recycled . | . . . Retrieved Matter . | . . . Parts Self-Destructed 5 | . . 5 Prevented . | . . . Parts Restored . | . . . Kills | -11 -10 -10 ------- Run | Yrd Mat Sub Combat Hostiles Destroyed 12 | . 9 3 Guns 10 | . 8 2 AOE 1 | . 1 . Classes Destroyed 8 | 2 5 1 Worker 3 | . 3 . Tunneler 3 | 3 . . Hauler 1 | . 1 . Recycler 1 | 1 . . Watcher 2 | . 2 . Swarmer 6 | . 6 . Grunt 3 | . 3 . Subdweller 3 | . . 3 Best Kill Streak 4 | 2 4 2 Combat Bots Only 3 | . 3 2 Max Kills in Single Turn 2 | 1 2 1 Gunslinging 1 | . 1 . Exploded 1 | . 1 . Melee . | . . . Uniques/NPCs Destroyed . | . . . Combat | -11 -10 -10 -------- Run | Yrd Mat Sub Hostile Shots Fired 102 | . 50 52 Missed 18 | . 10 8 Hits 84 | . 40 44 Projectile 84 | . 40 44 Damage Taken 1376 | . 414 962 Core 265 | . 51 214 Absorbed by Shields . | . . . Core Remaining (%) 100 | 100 . . Volleys Fired 122 | 13 49 60 Largest 2 | 2 2 2 Hottest 100 | 60 60 100 Shots Fired 192 | 26 96 70 Gun 145 | 26 96 23 Cannon 5 | . . 5 Launcher . | . . . Special 42 | . . 42 Kinetic 95 | 13 59 23 Thermal 97 | 13 37 47 Explosive . | . . . Electromagnetic . | . . . Robot Hit Streak 22 | 5 8 22 Robot Miss Streak 7 | 2 7 1 Penetration Max . | . . . Secondary Targets 1 | . 1 . Max Gunslinging Chain 1 | . 1 . Shots Hit Robots 91 | 15 51 25 Core Hits 38 | 7 27 4 Critical Kills 1 | . . 1 Critical Parts Destroyed . | . . . Critical Strikes 1 | . . 1 Meltdown 1 | . . 1 Melee Attacks . | . . . Impact . | . . . Slashing . | . . . Piercing . | . . . Sneak Attacks . | . . . Combat Hostiles . | . . . Follow-up Attacks . | . . . Damage Inflicted 1053 | 144 588 321 Guns 940 | 144 554 242 Cannons 79 | . . 79 Explosions 34 | . 34 . Melee . | . . . Ramming . | . . . Kinetic 532 | 55 235 242 Thermal 487 | 89 319 79 Explosive . | . . . Electromagnetic 34 | . 34 . Impact . | . . . Slashing . | . . . Piercing . | . . . Highest Corruption . | . . . Average Corruption . | . . . Corruption Purged . | . . . Corruption Blocked . | . . . Overload Shots . | . . . Overflow Damage 5 | . 5 . Projectiles . | . . . Explosions 5 | . 5 . Melee . | . . . Knockbacks . | . . . Impact . | . . . Kinetic . | . . . Secondary . | . . . Self-Inflicted Damage 36 | . 36 . Shots 1 | . 1 . Rammed . | . . . Targets Rammed . | . . . Kicked . | . . . Crushed . | . . . Highest Temperature 67 | 40 67 . Average Temperature 18 | 18 19 . Received Heat Transfer 309 | . 105 204 Siege Activations . | . . . Martial Activations . | . . . Shielding Activations . | . . . Robots Disrupted . | . . . Combat Hostiles . | . . . Robots Corrupted . | . . . Combat Hostiles . | . . . Parts Fried . | . . . Impact Corruptions . | . . . Robots Melted 1 | . . 1 Combat Hostiles 1 | . . 1 Parts Melted 7 | . 1 6 Heat Transferred 1011 | 200 700 111 Parts Sabotaged . | . . . Parts Stolen . | . . . Parts Stripped . | . . . Power Chain Reactions . | . . . Alert | -11 -10 -10 ------- Run | Yrd Mat Sub Maximum Alert Level . | . . . Low Security (%) 100 | 100 100 . Level 1 . | . . . Level 2 . | . . . Level 3 . | . . . Level 4 . | . . . Level 5 . | . . . High Security . | . . . Max Security . | . . . Peak Influence 100 | 10 100 . Initial . | . . . Average 23 | 1 26 . Influence Increases 318 | 20 298 . Destroy 0b10 Robot/C 180 | . 180 . Destroy 0b10 Robot/NC 50 | 20 30 . Destroy Leader 46 | . 46 . Successful Hack 10 | . 10 . Disable Machine 15 | . 15 . Destroy Structure 2 | . 2 . Lose Combat Pursuer 15 | . 15 . Influence Decreases 318 | 20 206 92 Entered New Map 45 | . . 45 Time Decay 263 | 20 196 47 Lost Part 10 | . 10 . Squads Dispatched 1 | . 1 . Investigation . | . . . Extermination . | . . . Reinforcement 1 | . 1 . Assault . | . . . Garrison . | . . . Intercept . | . . . Searches Triggered . | . . . Construction Impeded . | . . . Haulers Reinforced . | . . . Active Scanning Responses . | . . . Cargo Convoy Interrupts . | . . . Stealth | -11 -10 -10 --------- Run | Yrd Mat Sub Distress Signals . | . . . Communications Jammed . | . . . Distress Signals . | . . . Times Spotted 27 | . 21 6 Peak Tracking Total 4 | . 4 3 Tactical Retreats 1 | . 1 . Traps | -11 -10 -10 ------- Run | Yrd Mat Sub Traps Triggered . | . . . Indirectly . | . . . Trap Hack Attempts . | . . . Triggered . | . . . Disarmed . | . . . Reprogrammed . | . . . Reused . | . . . Traps Extracted . | . . . Installed . | . . . Triggered . | . . . Machines | -11 -10 -10 ---------- Run | Yrd Mat Sub Machines Disabled 1 | . 1 . Max in Single Turn 1 | . 1 . Machines Repaired . | . . . Machines Dismantled . | . . . Machines Sabotaged . | . . . Overloaded Fab Kills . | . . . Hacking | -11 -10 -10 --------- Run | Yrd Mat Sub Machines Accessed 3 | . 3 . Terminals 2 | . 2 . Fabricators . | . . . Repair Stations . | . . . Recycling Units 1 | . 1 . Scanalyzers . | . . . Garrison Access . | . . . Total Hacks 5 | . 5 . Successful 4 | . 4 . Failed 1 | . 1 . Catastrophic . | . . . Database Lockouts . | . . . Manual 2 | . 2 . Terminals 4 | . 4 . Fabricators . | . . . Repair Stations . | . . . Recycling Units 1 | . 1 . Scanalyzers . | . . . Garrison Access . | . . . Terminal Hacks 3 | . 3 . Robot Analysis 2 | . 2 . Locate Traps 1 | . 1 . Fabricator Hacks . | . . . Repair Station Hacks . | . . . Recycling Unit Hacks 1 | . 1 . Report Inventory 1 | . 1 . Scanalyzer . | . . . Garrison Access Hacks . | . . . Unauthorized Hacks . | . . . Terminals . | . . . Fabricators . | . . . Repair Stations . | . . . Recycling Units . | . . . Scanalyzers . | . . . Garrison Access . | . . . Data Cores Recovered . | . . . Used . | . . . Hacking Detections 2 | . 2 . Full Trace Events . | . . . Feedback Events . | . . . Feedback Blocked . | . . . Robot Schematics Acquired . | . . . Robots Built . | . . . Authchips . | . . . Time . | . . . Total Robot Build Rating . | . . . Part Schematics Acquired . | . . . Parts Built . | . . . Authchips . | . . . Time . | . . . Total Part Build Rating . | . . . Part Studies Acquired . | . . . Parts Repaired . | . . . Time . | . . . Parts Recycled . | . . . Recycled Matter . | . . . Retrieved Matter . | . . . Retrieved Components . | . . . Parts Scanalyzed . | . . . Part Schematics Acquired . | . . . Parts Damaged . | . . . Bothacking | -11 -10 -10 ------------ Run | Yrd Mat Sub Used RIF Installer . | . . . Robots Hacked . | . . . Non-combat . | . . . Combat . | . . . Robot Hacks Applied . | . . . Relay Couplers Released . | . . . Fabnet Peak Effective % . | . . . Robots Rewired . | . . . Allies Hacked . | . . . Hacks Repelled . | . . . Allies | -11 -10 -10 -------- Run | Yrd Mat Sub Total Allies . | . . . Largest Group . | . . . Highest-Rated Group . | . . . Highest-Rated Ally . | . . . Total Orders . | . . . Ally Attacks . | . . . Total Damage . | . . . Kills . | . . . Allies Corrupted . | . . . Allies Melted . | . . . Intel | -11 -10 -10 ------- Run | Yrd Mat Sub Active Infowar (turns) 618 | 36 323 259 Terrain 259 | . . 259 Seismic 359 | 36 323 . Robot Analysis Total 2 | . 2 . Derelict Logs Recovered 1 | . . 1 Drone Launches . | . . . Drone Recoveries . | . . . Exploration | -11 -10 -10 ------------- Run | Yrd Mat Sub Turns Passed 1638 | 114 759 765 Spaces Moved 828 | 45 458 325 Core 1 | . . 1 Treads 1 | . 1 . Legs 8 | 8 . . Wheels 818 | 37 457 324 Hover . | . . . Flight . | . . . Fastest Speed 100 | 100 100 130 Average Speed 127 | 103 116 145 Slowest Speed 850 | 120 320 850 Overloaded Moves . | . . . Propulsion Burnouts . | . . . Robots Hopped . | . . . Potential Cave-ins . | . . . Cave-ins Triggered . | . . . Exploration Rate (%) 24 | 5 41 28 Regions Visited 2 Branch Regions 1 Pre-discovered Areas 1 | . . 1 Known Exits Taken . | . . . Unknown Exits Taken 2 | 1 1 . Scrap Searched . | . . . Spaces Dug . | . . . Terrain Destroyed . | . . . Melee . | . . . Projectile . | . . . AOE . | . . . Terrain Rammed . | . . . Walls Destroyed . | . . . Machines Disabled . | . . . Actions | -11 -10 -10 --------- Run | Yrd Mat Sub Total 1151 | 90 598 463 Wait 135 | 23 68 44 Move 826 | 44 457 325 Hop . | . . . Pick Up 17 | 3 9 5 Fast Attach 1 | 1 . . Attach 12 | 2 5 5 Detach . | . . . Swap 10 | . 4 6 Drop 10 | 4 6 . Fire 122 | 13 49 60 Melee . | . . . Ram . | . . . Kick . | . . . Crush . | . . . Escape Stasis . | . . . Rewire 18 | . . 18 Trap . | . . . Miscellaneous . | . . . Route ------- -11/Scrapyard -10/Materials (discovered 2 exits: [*Mat] / [*Sub]) -10/Subcaves (discovered 1 exit: [*Mat]) History --------- Turn | Location | Event 16 | -11/Scrapyard | Discovered new exit (range 3) 115 | -11/Scrapyard | Entered Materials 315 | -10/Materials | Build established: Mutant 855 | -10/Materials | Discovered new exit (range 12) 867 | -10/Materials | Discovered new exit (range 7) 874 | -10/Materials | Entered Subcaves 1223 | -10/Subcaves | Learned 2 Materials zone layouts 1226 | -10/Subcaves | Discovered new exit (range 15) 1265 | -10/Subcaves | Shifting Twisted Machinery released Sub. Monowheel 1350 | -10/Subcaves | Lost 5 parts (1p1n3w) 1445 | -10/Subcaves | Shifting Twisted Machinery released Multitool 1566 | -10/Subcaves | Learned location of Zion (-7) 1566 | -10/Subcaves | Met a Zionite searching for "candidates" 1615 | -10/Subcaves | Build established: Scavenger-Mutant 1624 | -10/Subcaves | A Subdweller sparked back to life 1624 | -10/Subcaves | A Subdweller sparked back to life 1624 | -10/Subcaves | A Subdweller sparked back to life 1631 | -10/Subcaves | Core integrity fell below 50% 1639 | -10/Subcaves | Core integrity fell below 20% 1639 | -10/Subcaves | Destroyed by AO-I12(R) with Subdweller Machine Gun Last Messages --------------- 01618_ Attempting to rewire T8-29T(R). 01618_ T8-29T(R) is broken beyond repair. 01619_ Attempting to rewire T8-29T(R). 01619_ T8-29T(R) is broken beyond repair. 01622_ Attempting to rewire AO-I12(R). 01622_ AO-I12(R) is broken beyond repair. 01623_ Attempting to rewire AO-I12(R). 01623_ AO-I12(R) is broken beyond repair. 01624_ T8-29T(R) creaks and sparks as it begins to move. 01624_ 5D-AUD(R) creaks and sparks as it begins to move. 01624_ AO-I12(R) creaks and sparks as it begins to move. 01624_ Mining Laser destroyed. 01626_ Com. Wheel destroyed. 01630_ Ion Engine destroyed. 01636_ Sub. Beam Cannon destroyed. 01636_ 5D-AUD(R) affixes Scrap Shield Fragment to Scrap Shield. Map ----- +----------------------------------------------------+ | ?????????????????????????????????????????????????? | | ?????????????????????????????????????????????????? | | ?????????????????????????????????????????????????? | | ?????????????????????????????????????????????????? | | ?????????????????????????????????????????????????? | | #??#?????????????????????????????????????????????? | | ##???????????????????????????????????????????????? | | #???????????????????????????????????????????????? | | #####????????????????????????????????????????????? | | ## ####??????????????????????????????????????????? | | #??? ??????????????????????????????????????? | | ##??????????????????????????????????????????? | | ######???#????????????????????????#??????????????? | | #????#???????????????????????????? ??????????????? | | ?????#??????????????????????????? ##?????????????? | | ?????#??????????????????????????? ##????????????? | | #?????#??????????????###???##???? #????????????? | | ????????#???????????## ### ??### #????????????? | | ????????????????????# ?## ?????????????? | | ????????????????????# #?# ??????????????? | | ?????????????????????# ? #?# #???????????????? | | ????? ?#?????????????# ## #### ##???????????????? | | ????????????????????## < ## ##??????????????? | | ????????????????????# << #####?########## | | ????????????????????# R & ### ## # | | ????????????????????< R @# ## ## | | ????????????????????# < R ##### < | | ????????????????????#######???## ## % | | ??????????????????????????????# # ## #### | | ??????????????????????????????# # ### #??? | | ??????????????????????????????# ## #?# ###? | | ????????#?????????????????????# ###% ## ## | | ???#????????????????????????#? # # | | ????????#??????????????????? | | ??????????????????#????????? ## ### | | ???????????????????????????? ?## ### ##?# | | ??????????????????????????## ### ?# ###?## | | ?#?????#???#?#????????????# # ### #????# | | ??????????#?????#????#????? ### ###?????# % | | ???###?#?????????????????#? ## #???????# | | ???# ######?#??????###????? ### ##??????## | | ??## """##???#???# #?????# ?# ##??????# | | ??# "" ##?????## #?????# #?# #??????#### | | ??# " " ####### ####### ### #??????#### % | | ### " " ## # ## #####??# % | | "" """ " " " #??# % | | "" """ """ & " "#??## % ## | | "" """ "##" #& & # ### ##???## | | " """ "###" ## ### ####?# ####?# | | ##" ""#?### # #?# ##????#" #""### | +----------------------------------------------------+ Best States ------------- Heat Dissipation 39 Energy Generation 10 Energy Capacity 250 Matter Stores 300 Matter Capacity 300 Sight Range 16 Terrain Scan Range 14 Terrain Scan Density 10 Evasion (%) 55 Recoil Reduction 1 Item Schematics ----------------- None Robot Schematics ------------------ None Fabricated ------------ Nothing Repaired ---------- Nothing Studied --------- None Alien Tech Used ----------------- None Achievements -------------- None Challenges ------------ None Game ------ Seed MultinovaSlugHarness Manual? 0 Play Time 00:14:22 Cumulative 69.0 hours Start 2026.04.07 @ 12:37:54 End 2026.04.07 @ 12:50:53 Sessions 1 Manual Loads 0 Difficulty Rogue Special Mode None Game No. 60 Rogue 50 Adventurer 9 Explorer 1 Win Type - Total 0 Types 0/0/0/0/0/0/0/0/0/0 Lore% 37 Gallery% 34 Achievement% 27 Wizard Run 0 Options --------- Layout 2 ASCII 0 Keyboard 0 Movement Mouse Keybinds 0 Fullscreen 1 Font 48/Terminus Map View 50x44 Zoom Use 0% Tactical HUD 1 Map Filters NONE Filters NONE Steam 1 RUN: b23e5c49-143c-4094-83bf-ba1f323008cc